[Event "Titled Tuesday Blitz October 31 Late 2023"]
[White "Korpics, Zsolt"]
[Black "Krzyzanowski, Marcin"]
[WhiteFideId "705241"]
[BlackFideId "1132199"]
[WhiteElo "2432"]
[BlackElo "2776"]
[Result "1-0"]
[Round "8"]
[TimeControl "180+1"]
[Date "2023.10.31"]
[WhiteClock "0:00:22"]
[BlackClock "0:00:02"]
[Board "26"]

1. e4 {[%clk 0:03:00]}  c5 {[%clk 0:03:00]} 2. Nf3 {[%clk 0:03:01]}  d6 {[%clk 0:03:00]} 3. Nc3 {[%clk 0:03:01]}  Nf6 {[%clk 0:03:00]} 4. e5 {[%clk 0:03:01]}  dxe5 {[%clk 0:03:01]} 5. Nxe5 {[%clk 0:03:02]}  a6 {[%clk 0:02:53]} 6. g3 {[%clk 0:03:02]}  Qd6 {[%clk 0:02:53]} 7. Nf3 {[%clk 0:02:58]}  Nc6 {[%clk 0:02:52]} 8. Bg2 {[%clk 0:02:58]}  e5 {[%clk 0:02:52]} 9. d3 {[%clk 0:02:57]}  h6 {[%clk 0:02:50]} 10. O-O {[%clk 0:02:57]}  Be7 {[%clk 0:02:50]} 11. Ne4 {[%clk 0:02:56]}  Nxe4 {[%clk 0:02:47]} 12. dxe4 {[%clk 0:02:57]}  O-O {[%clk 0:02:37]} 13. Qxd6 {[%clk 0:02:56]}  Bxd6 {[%clk 0:02:37]} 14. Rd1 {[%clk 0:02:56]}  Be7 {[%clk 0:02:33]} 15. c3 {[%clk 0:02:56]}  Be6 {[%clk 0:02:28]} 16. Be3 {[%clk 0:02:53]}  b5 {[%clk 0:02:24]} 17. Nd2 {[%clk 0:02:48]}  c4 {[%clk 0:02:19]} 18. h4 {[%clk 0:02:17]}  Rfd8 {[%clk 0:02:06]} 19. Kh2 {[%clk 0:02:11]}  Rd7 {[%clk 0:01:48]} 20. Nf1 {[%clk 0:02:09]}  Rad8 {[%clk 0:01:46]} 21. Rxd7 {[%clk 0:02:08]}  Rxd7 {[%clk 0:01:47]} 22. Bh3 {[%clk 0:02:08]}  Bxh3 {[%clk 0:01:45]} 23. Kxh3 {[%clk 0:02:09]}  a5 {[%clk 0:01:38]} 24. Kg2 {[%clk 0:02:07]}  Rd3 {[%clk 0:01:31]} 25. Kf3 {[%clk 0:02:04]}  b4 {[%clk 0:01:09]} 26. Rc1 {[%clk 0:01:39]}  bxc3 {[%clk 0:01:06]} 27. Rxc3 {[%clk 0:01:12]}  Nd4+ {[%clk 0:01:06]} 28. Kg2 {[%clk 0:01:12]}  Rxc3 {[%clk 0:01:01]} 29. bxc3 {[%clk 0:01:12]}  Nb5 {[%clk 0:00:40]} 30. Nd2 {[%clk 0:01:11]}  Nxc3 {[%clk 0:00:36]} 31. Nxc4 {[%clk 0:01:11]}  a4 {[%clk 0:00:31]} 32. Nb6 {[%clk 0:00:43]}  a3 {[%clk 0:00:20]} 33. Nd5 {[%clk 0:00:42]}  Nxd5 {[%clk 0:00:20]} 34. exd5 {[%clk 0:00:43]}  f5 {[%clk 0:00:19]} 35. Kf1 {[%clk 0:00:39]}  g5 {[%clk 0:00:18]} 36. hxg5 {[%clk 0:00:38]}  hxg5 {[%clk 0:00:19]} 37. Ke2 {[%clk 0:00:38]}  Kf7 {[%clk 0:00:19]} 38. Kd3 {[%clk 0:00:37]}  e4+ {[%clk 0:00:11]} 39. Kc4 {[%clk 0:00:37]}  Bf6 {[%clk 0:00:05]} 40. Kc5 {[%clk 0:00:24]}  Bb2 {[%clk 0:00:04]} 41. Kc6 {[%clk 0:00:24]}  Be5 {[%clk 0:00:01]} 42. Bxg5 {[%clk 0:00:24]}  Bd4 {[%clk 0:00:02]} 43. Be3 {[%clk 0:00:23]}  Be5 {[%clk 0:00:02]} 44. d6 {[%clk 0:00:23]}  Ke6 {[%clk 0:00:02]} 45. d7 {[%clk 0:00:23]}  Bf6 {[%clk 0:00:03]} 46. Bb6 {[%clk 0:00:23]}  f4 {[%clk 0:00:02]} 47. gxf4 {[%clk 0:00:22]}  Kf5 {[%clk 0:00:03]} 48. d8=Q {[%clk 0:00:22]}  Bxd8 {[%clk 0:00:03]} 49. Bxd8 {[%clk 0:00:23]}  Kxf4 {[%clk 0:00:04]} 50. Bb6 {[%clk 0:00:23]}  Kf3 {[%clk 0:00:04]} 51. Kb5 {[%clk 0:00:22]}  Ke2 {[%clk 0:00:05]} 52. Ka4 {[%clk 0:00:23]}  Kd3 {[%clk 0:00:05]} 53. Kxa3 {[%clk 0:00:23]}  Kc4 {[%clk 0:00:05]} 54. Be3 {[%clk 0:00:23]}  Kb5 {[%clk 0:00:05]} 55. Kb2 {[%clk 0:00:24]}  Kc4 {[%clk 0:00:06]} 56. Kc2 {[%clk 0:00:24]}  Kb4 {[%clk 0:00:04]} 57. a3+ {[%clk 0:00:21]}  Kxa3 {[%clk 0:00:03]} 58. Kc3 {[%clk 0:00:21]}  Ka4 {[%clk 0:00:02]} 59. Kd4 {[%clk 0:00:22]} 1-0


[Site "https://www.chess.com"]

[Event "Titled Tuesday Blitz October 31 Late 2023"]
[White "Rustemov, Alexander"]
[Black "Kornyukov, Alexey"]
[WhiteFideId "4119002"]
[BlackFideId "4150457"]
[WhiteElo "2855"]
[BlackElo "2350"]
[Result "1-0"]
[Round "8"]
[TimeControl "180+1"]
[Date "2023.10.31"]
[WhiteClock "0:00:32"]
[BlackClock "0:00:00"]
[Board "27"]

1. d4 {[%clk 0:02:55]}  d5 {[%clk 0:02:59]} 2. c4 {[%clk 0:02:54]}  e6 {[%clk 0:02:59]} 3. Nc3 {[%clk 0:02:55]}  c6 {[%clk 0:02:59]} 4. e3 {[%clk 0:02:54]}  Nf6 {[%clk 0:02:58]} 5. Nf3 {[%clk 0:02:54]}  Nbd7 {[%clk 0:02:58]} 6. Qc2 {[%clk 0:02:55]}  Bd6 {[%clk 0:02:56]} 7. Bd2 {[%clk 0:02:55]}  O-O {[%clk 0:02:50]} 8. O-O-O {[%clk 0:02:55]}  b6 {[%clk 0:02:50]} 9. e4 {[%clk 0:02:55]}  dxe4 {[%clk 0:02:42]} 10. Nxe4 {[%clk 0:02:56]}  Be7 {[%clk 0:02:34]} 11. Bd3 {[%clk 0:02:52]}  Qc7 {[%clk 0:02:26]} 12. Rhe1 {[%clk 0:02:46]}  Bb7 {[%clk 0:02:25]} 13. Bc3 {[%clk 0:02:42]}  Rad8 {[%clk 0:01:58]} 14. Kb1 {[%clk 0:02:35]}  Rfe8 {[%clk 0:01:56]} 15. Neg5 {[%clk 0:02:22]}  h6 {[%clk 0:01:49]} 16. Nxf7 {[%clk 0:02:21]}  Kxf7 {[%clk 0:01:47]} 17. Bg6+ {[%clk 0:02:21]}  Kg8 {[%clk 0:01:42]} 18. Bxe8 {[%clk 0:02:19]}  Rxe8 {[%clk 0:01:40]} 19. Rxe6 {[%clk 0:02:18]}  Nf8 {[%clk 0:01:26]} 20. Re3 {[%clk 0:02:17]}  Rd8 {[%clk 0:01:21]} 21. Rde1 {[%clk 0:02:11]}  Bd6 {[%clk 0:01:21]} 22. Nh4 {[%clk 0:01:58]}  Bc8 {[%clk 0:01:15]} 23. Nf5 {[%clk 0:01:44]}  Ng4 {[%clk 0:01:07]} 24. Re8 {[%clk 0:01:32]}  Qd7 {[%clk 0:00:20]} 25. Rxd8 {[%clk 0:01:12]}  Qxd8 {[%clk 0:00:21]} 26. h3 {[%clk 0:01:11]}  Nf6 {[%clk 0:00:18]} 27. a3 {[%clk 0:01:04]}  Be6 {[%clk 0:00:14]} 28. Nxd6 {[%clk 0:00:59]}  Qxd6 {[%clk 0:00:13]} 29. Bb4 {[%clk 0:00:59]}  c5 {[%clk 0:00:10]} 30. dxc5 {[%clk 0:00:58]}  bxc5 {[%clk 0:00:11]} 31. Bd2 {[%clk 0:00:45]}  Qd7 {[%clk 0:00:09]} 32. Ka1 {[%clk 0:00:42]}  Bf5 {[%clk 0:00:07]} 33. Qc1 {[%clk 0:00:40]}  Ne6 {[%clk 0:00:06]} 34. Be3 {[%clk 0:00:37]}  Nd4 {[%clk 0:00:05]} 35. Bxd4 {[%clk 0:00:37]}  Qxd4 {[%clk 0:00:00]} 36. f3 {[%clk 0:00:32]} 1-0


[Site "https://www.chess.com"]

[Event "Titled Tuesday Blitz October 31 Late 2023"]
[White "Javakhadze, Zurab"]
[Black "Fiorito, Francisco"]
[WhiteFideId "13603647"]
[BlackFideId "180165"]
[WhiteElo "2780"]
[BlackElo "2616"]
[Result "1-0"]
[Round "8"]
[TimeControl "180+1"]
[Date "2023.10.31"]
[WhiteClock "0:00:13"]
[BlackClock "0:00:03"]
[Board "28"]

1. d4 {[%clk 0:03:00]}  Nf6 {[%clk 0:02:58]} 2. c4 {[%clk 0:03:00]}  b6 {[%clk 0:02:57]} 3. Nc3 {[%clk 0:02:59]}  Bb7 {[%clk 0:02:57]} 4. a3 {[%clk 0:02:58]}  d5 {[%clk 0:02:48]} 5. cxd5 {[%clk 0:02:46]}  Nxd5 {[%clk 0:02:48]} 6. f3 {[%clk 0:02:44]}  Nxc3 {[%clk 0:02:47]} 7. bxc3 {[%clk 0:02:45]}  e6 {[%clk 0:02:48]} 8. e4 {[%clk 0:02:44]}  Be7 {[%clk 0:02:48]} 9. Be3 {[%clk 0:02:37]}  O-O {[%clk 0:02:46]} 10. Bd3 {[%clk 0:02:38]}  c5 {[%clk 0:02:45]} 11. Ne2 {[%clk 0:02:38]}  cxd4 {[%clk 0:02:45]} 12. cxd4 {[%clk 0:02:39]}  Nc6 {[%clk 0:02:46]} 13. O-O {[%clk 0:02:39]}  Na5 {[%clk 0:02:46]} 14. f4 {[%clk 0:02:22]}  f5 {[%clk 0:02:14]} 15. Ng3 {[%clk 0:01:57]}  fxe4 {[%clk 0:02:12]} 16. Bxe4 {[%clk 0:01:58]}  Bxe4 {[%clk 0:02:11]} 17. Nxe4 {[%clk 0:01:59]}  Nc4 {[%clk 0:02:10]} 18. Qd3 {[%clk 0:01:58]}  Rc8 {[%clk 0:02:07]} 19. a4 {[%clk 0:01:42]}  Qd5 {[%clk 0:02:01]} 20. Nc3 {[%clk 0:01:34]}  Qf5 {[%clk 0:01:41]} 21. Qe2 {[%clk 0:01:30]}  Bf6 {[%clk 0:01:34]} 22. Bf2 {[%clk 0:01:19]}  Kh8 {[%clk 0:01:29]} 23. g3 {[%clk 0:01:06]}  Rfd8 {[%clk 0:01:25]} 24. Rad1 {[%clk 0:00:59]}  Nd6 {[%clk 0:01:21]} 25. Nb5 {[%clk 0:00:53]}  Nxb5 {[%clk 0:01:19]} 26. axb5 {[%clk 0:00:54]}  Rc2 {[%clk 0:01:18]} 27. Qd3 {[%clk 0:00:46]}  Qxd3 {[%clk 0:01:13]} 28. Rxd3 {[%clk 0:00:47]}  Rb2 {[%clk 0:01:13]} 29. Ra1 {[%clk 0:00:46]}  Rxb5 {[%clk 0:01:06]} 30. Rxa7 {[%clk 0:00:46]}  h5 {[%clk 0:01:06]} 31. Rb7 {[%clk 0:00:44]}  Rb1+ {[%clk 0:01:02]} 32. Kg2 {[%clk 0:00:42]}  Rb2 {[%clk 0:01:03]} 33. Kf3 {[%clk 0:00:42]}  b5 {[%clk 0:01:01]} 34. h3 {[%clk 0:00:37]}  g5 {[%clk 0:00:27]} 35. Rf7 {[%clk 0:00:35]}  Bg7 {[%clk 0:00:17]} 36. fxg5 {[%clk 0:00:34]}  Kg8 {[%clk 0:00:18]} 37. g6 {[%clk 0:00:32]}  b4 {[%clk 0:00:16]} 38. Be3 {[%clk 0:00:26]}  b3 {[%clk 0:00:13]} 39. Rb7 {[%clk 0:00:26]}  Rf8+ {[%clk 0:00:07]} 40. Bf4 {[%clk 0:00:20]}  Bxd4 {[%clk 0:00:03]} 41. Rxd4 {[%clk 0:00:13]}  e5 {[%clk 0:00:03]} 42. Rdd7 {[%clk 0:00:13]}  Rf6 {[%clk 0:00:02]} 43. Rd8+ {[%clk 0:00:12]}  Rf8 {[%clk 0:00:02]} 44. Rxf8+ {[%clk 0:00:12]}  Kxf8 {[%clk 0:00:03]} 45. Bh6+ {[%clk 0:00:13]}  Kg8 {[%clk 0:00:03]} 46. Rb8# {[%clk 0:00:13]} 1-0


[Site "https://www.chess.com"]

[Event "Titled Tuesday Blitz October 31 Late 2023"]
[White "Yelisieiev, Yevhenii"]
[Black "Koellner, Ruben Gideon"]
[WhiteFideId "14139642"]
[BlackFideId "12993093"]
[WhiteElo "2624"]
[BlackElo "2735"]
[Result "0-1"]
[Round "8"]
[TimeControl "180+1"]
[Date "2023.10.31"]
[WhiteClock "0:00:04"]
[BlackClock "0:00:12"]
[Board "29"]

1. d4 {[%clk 0:02:59]}  d6 {[%clk 0:02:59]} 2. Nf3 {[%clk 0:02:54]}  Nf6 {[%clk 0:02:55]} 3. g3 {[%clk 0:02:54]}  Nbd7 {[%clk 0:02:53]} 4. Bg2 {[%clk 0:02:54]}  e5 {[%clk 0:02:50]} 5. O-O {[%clk 0:02:51]}  Be7 {[%clk 0:02:48]} 6. c4 {[%clk 0:02:51]}  O-O {[%clk 0:02:48]} 7. Nc3 {[%clk 0:02:51]}  Re8 {[%clk 0:02:45]} 8. e4 {[%clk 0:02:48]}  Bf8 {[%clk 0:02:41]} 9. Re1 {[%clk 0:02:48]}  c6 {[%clk 0:02:33]} 10. b3 {[%clk 0:02:46]}  Qc7 {[%clk 0:02:17]} 11. Bb2 {[%clk 0:02:46]}  a5 {[%clk 0:02:16]} 12. Qd2 {[%clk 0:02:45]}  h6 {[%clk 0:02:15]} 13. Rad1 {[%clk 0:02:45]}  exd4 {[%clk 0:02:03]} 14. Nxd4 {[%clk 0:02:45]}  Nc5 {[%clk 0:02:03]} 15. h3 {[%clk 0:02:36]}  Be6 {[%clk 0:01:58]} 16. f3 {[%clk 0:01:51]}  Rad8 {[%clk 0:01:45]} 17. Qc1 {[%clk 0:01:48]}  Bc8 {[%clk 0:01:22]} 18. Kh2 {[%clk 0:01:47]}  h5 {[%clk 0:01:20]} 19. Qg5 {[%clk 0:01:44]}  Re5 {[%clk 0:01:12]} 20. Nf5 {[%clk 0:01:34]}  Bxf5 {[%clk 0:01:02]} 21. exf5 {[%clk 0:01:33]}  Rxe1 {[%clk 0:01:03]} 22. Rxe1 {[%clk 0:01:33]}  Nd3 {[%clk 0:01:03]} 23. Re2 {[%clk 0:01:18]}  Nxb2 {[%clk 0:01:03]} 24. Rxb2 {[%clk 0:01:19]}  d5 {[%clk 0:01:00]} 25. cxd5 {[%clk 0:01:14]}  cxd5 {[%clk 0:01:01]} 26. Ne2 {[%clk 0:01:10]}  d4 {[%clk 0:00:47]} 27. Rd2 {[%clk 0:01:04]}  d3 {[%clk 0:00:45]} 28. Ng1 {[%clk 0:00:42]}  Bb4 {[%clk 0:00:22]} 29. Rd1 {[%clk 0:00:39]}  Qc2 {[%clk 0:00:16]} 30. Rc1 {[%clk 0:00:14]}  Bd2 {[%clk 0:00:15]} 31. Rxc2 {[%clk 0:00:12]}  dxc2 {[%clk 0:00:16]} 32. f4 {[%clk 0:00:07]}  c1=Q {[%clk 0:00:14]} 33. Nf3 {[%clk 0:00:08]}  Be3 {[%clk 0:00:13]} 34. g4 {[%clk 0:00:04]}  Bxf4+ {[%clk 0:00:12]} 0-1


[Site "https://www.chess.com"]

[Event "Titled Tuesday Blitz October 31 Late 2023"]
[White "Karttunen, Mika"]
[Black "Rohan, Ahuja"]
[WhiteFideId "502081"]
[BlackFideId "5090598"]
[WhiteElo "2598"]
[BlackElo "2715"]
[Result "0-1"]
[Round "8"]
[TimeControl "180+1"]
[Date "2023.10.31"]
[WhiteClock "0:00:11"]
[BlackClock "0:00:11"]
[Board "32"]

1. d4 {[%clk 0:03:00]}  Nf6 {[%clk 0:02:59]} 2. c4 {[%clk 0:03:00]}  g6 {[%clk 0:02:58]} 3. Nc3 {[%clk 0:02:59]}  d5 {[%clk 0:02:57]} 4. cxd5 {[%clk 0:02:59]}  Nxd5 {[%clk 0:02:58]} 5. e4 {[%clk 0:02:58]}  Nxc3 {[%clk 0:02:58]} 6. bxc3 {[%clk 0:02:59]}  Bg7 {[%clk 0:02:58]} 7. Be3 {[%clk 0:02:59]}  c5 {[%clk 0:02:58]} 8. Qd2 {[%clk 0:02:56]}  Qa5 {[%clk 0:02:58]} 9. Rb1 {[%clk 0:02:52]}  b6 {[%clk 0:02:49]} 10. Rb5 {[%clk 0:02:45]}  Qa3 {[%clk 0:02:22]} 11. Qb2 {[%clk 0:02:37]}  Qxb2 {[%clk 0:02:15]} 12. Rxb2 {[%clk 0:02:37]}  O-O {[%clk 0:01:48]} 13. e5 {[%clk 0:02:34]}  cxd4 {[%clk 0:01:42]} 14. cxd4 {[%clk 0:02:33]}  Be6 {[%clk 0:01:38]} 15. f4 {[%clk 0:02:28]}  Nc6 {[%clk 0:01:35]} 16. Nf3 {[%clk 0:02:28]}  Bd5 {[%clk 0:01:30]} 17. Ba6 {[%clk 0:02:11]}  Rfd8 {[%clk 0:01:19]} 18. Nh4 {[%clk 0:01:32]}  Rab8 {[%clk 0:01:11]} 19. O-O {[%clk 0:01:30]}  e6 {[%clk 0:01:11]} 20. Rc1 {[%clk 0:01:25]}  Bf8 {[%clk 0:01:12]} 21. Rf2 {[%clk 0:00:46]}  Nb4 {[%clk 0:01:01]} 22. Bf1 {[%clk 0:00:44]}  Rdc8 {[%clk 0:00:40]} 23. Rxc8 {[%clk 0:00:40]}  Rxc8 {[%clk 0:00:41]} 24. a3 {[%clk 0:00:38]}  Nc2 {[%clk 0:00:36]} 25. Re2 {[%clk 0:00:34]}  Bxa3 {[%clk 0:00:26]} 26. g4 {[%clk 0:00:33]}  Bb2 {[%clk 0:00:24]} 27. f5 {[%clk 0:00:30]}  Ba1 {[%clk 0:00:17]} 28. Bf2 {[%clk 0:00:28]}  Nxd4 {[%clk 0:00:11]} 29. Re1 {[%clk 0:00:27]}  Nc2 {[%clk 0:00:11]} 30. Re2 {[%clk 0:00:26]}  Bb2 {[%clk 0:00:10]} 31. Bg2 {[%clk 0:00:22]}  Bxg2 {[%clk 0:00:09]} 32. Kxg2 {[%clk 0:00:22]}  Ba3 {[%clk 0:00:09]} 33. fxe6 {[%clk 0:00:21]}  fxe6 {[%clk 0:00:09]} 34. Nf3 {[%clk 0:00:21]}  Be7 {[%clk 0:00:09]} 35. h4 {[%clk 0:00:16]}  Nb4 {[%clk 0:00:08]} 36. Rb2 {[%clk 0:00:15]}  Nd5 {[%clk 0:00:09]} 37. Ra2 {[%clk 0:00:16]}  Rc7 {[%clk 0:00:09]} 38. h5 {[%clk 0:00:16]}  Bc5 {[%clk 0:00:07]} 39. Bg3 {[%clk 0:00:15]}  Be7 {[%clk 0:00:06]} 40. hxg6 {[%clk 0:00:15]}  hxg6 {[%clk 0:00:07]} 41. Nh4 {[%clk 0:00:16]}  Kg7 {[%clk 0:00:07]} 42. Nf3 {[%clk 0:00:16]}  Bc5 {[%clk 0:00:07]} 43. Bh4 {[%clk 0:00:16]}  Be7 {[%clk 0:00:07]} 44. Bxe7 {[%clk 0:00:16]}  Nxe7 {[%clk 0:00:08]} 45. Nd4 {[%clk 0:00:16]}  Rd7 {[%clk 0:00:05]} 46. Nxe6+ {[%clk 0:00:16]}  Kf7 {[%clk 0:00:06]} 47. Ng5+ {[%clk 0:00:17]}  Kg7 {[%clk 0:00:06]} 48. Ne6+ {[%clk 0:00:17]}  Kf7 {[%clk 0:00:06]} 49. Nf4 {[%clk 0:00:17]}  Rc7 {[%clk 0:00:05]} 50. Rf2 {[%clk 0:00:17]}  Ke8 {[%clk 0:00:05]} 51. Ne6 {[%clk 0:00:17]}  Rc4 {[%clk 0:00:04]} 52. Ng7+ {[%clk 0:00:15]}  Kd7 {[%clk 0:00:04]} 53. Rd2+ {[%clk 0:00:15]}  Kc7 {[%clk 0:00:04]} 54. e6 {[%clk 0:00:16]}  Kc6 {[%clk 0:00:04]} 55. Rd7 {[%clk 0:00:16]}  Nd5 {[%clk 0:00:04]} 56. Rxa7 {[%clk 0:00:15]}  Re4 {[%clk 0:00:04]} 57. Ra8 {[%clk 0:00:14]}  Rxg4+ {[%clk 0:00:04]} 58. Kf3 {[%clk 0:00:13]}  Rf4+ {[%clk 0:00:05]} 59. Kg3 {[%clk 0:00:14]}  Re4 {[%clk 0:00:06]} 60. Rc8+ {[%clk 0:00:14]}  Kb7 {[%clk 0:00:06]} 61. Rd8 {[%clk 0:00:14]}  Nc7 {[%clk 0:00:07]} 62. Rd7 {[%clk 0:00:14]}  Kc6 {[%clk 0:00:07]} 63. Rf7 {[%clk 0:00:14]}  Nxe6 {[%clk 0:00:08]} 64. Rf6 {[%clk 0:00:14]}  Kd5 {[%clk 0:00:08]} 65. Rxg6 {[%clk 0:00:14]}  Nxg7 {[%clk 0:00:08]} 66. Rxg7 {[%clk 0:00:13]}  b5 {[%clk 0:00:08]} 67. Rb7 {[%clk 0:00:13]}  Kc4 {[%clk 0:00:08]} 68. Kf3 {[%clk 0:00:14]}  Re8 {[%clk 0:00:08]} 69. Rc7+ {[%clk 0:00:13]}  Kb3 {[%clk 0:00:09]} 70. Rb7 {[%clk 0:00:13]}  b4 {[%clk 0:00:10]} 71. Kf2 {[%clk 0:00:13]}  Kc3 {[%clk 0:00:10]} 72. Rc7+ {[%clk 0:00:13]}  Kb2 {[%clk 0:00:10]} 73. Rb7 {[%clk 0:00:11]}  b3 {[%clk 0:00:11]} 0-1


[Site "https://www.chess.com"]

[Event "Titled Tuesday Blitz October 31 Late 2023"]
[White "Gurevich, Dmitry"]
[Black "ArtemDyachuk"]
[WhiteFideId "2000407"]
[WhiteElo "2549"]
[BlackElo "2644"]
[Result "1-0"]
[Round "8"]
[TimeControl "180+1"]
[Date "2023.10.31"]
[WhiteClock "0:00:19"]
[BlackClock "0:00:51"]
[Board "36"]

1. d4 {[%clk 0:03:00]}  Nf6 {[%clk 0:02:58]} 2. c4 {[%clk 0:03:01]}  c6 {[%clk 0:02:58]} 3. Bf4 {[%clk 0:02:59]}  d5 {[%clk 0:02:58]} 4. e3 {[%clk 0:03:00]}  e6 {[%clk 0:02:55]} 5. Nc3 {[%clk 0:02:59]}  Bd6 {[%clk 0:02:54]} 6. Bxd6 {[%clk 0:02:57]}  Qxd6 {[%clk 0:02:55]} 7. Nf3 {[%clk 0:02:57]}  Nbd7 {[%clk 0:02:55]} 8. Be2 {[%clk 0:02:56]}  O-O {[%clk 0:02:55]} 9. O-O {[%clk 0:02:56]}  b6 {[%clk 0:02:53]} 10. Rc1 {[%clk 0:02:53]}  Bb7 {[%clk 0:02:53]} 11. Qc2 {[%clk 0:02:53]}  Rac8 {[%clk 0:02:50]} 12. e4 {[%clk 0:02:53]}  dxe4 {[%clk 0:02:48]} 13. Nxe4 {[%clk 0:02:51]}  Nxe4 {[%clk 0:02:48]} 14. Qxe4 {[%clk 0:02:51]}  Nf6 {[%clk 0:02:49]} 15. Qe5 {[%clk 0:02:51]}  Qe7 {[%clk 0:02:47]} 16. c5 {[%clk 0:02:49]}  Rfd8 {[%clk 0:02:47]} 17. h3 {[%clk 0:02:45]}  Rd5 {[%clk 0:02:45]} 18. Qe3 {[%clk 0:02:44]}  Rf5 {[%clk 0:02:45]} 19. Ne5 {[%clk 0:02:36]}  Nd5 {[%clk 0:02:43]} 20. Qd2 {[%clk 0:02:24]}  bxc5 {[%clk 0:02:14]} 21. Bg4 {[%clk 0:02:16]}  Rf4 {[%clk 0:02:14]} 22. Rxc5 {[%clk 0:02:04]}  Qg5 {[%clk 0:02:08]} 23. h4 {[%clk 0:01:30]}  Qh6 {[%clk 0:01:58]} 24. g3 {[%clk 0:01:22]}  Rf6 {[%clk 0:01:57]} 25. Qxh6 {[%clk 0:01:18]}  Rxh6 {[%clk 0:01:58]} 26. Rfc1 {[%clk 0:01:16]}  Kf8 {[%clk 0:01:48]} 27. Nxc6 {[%clk 0:01:13]}  Rg6 {[%clk 0:01:40]} 28. Bf3 {[%clk 0:01:09]}  Nf6 {[%clk 0:01:30]} 29. Ne5 {[%clk 0:01:04]}  Rxc5 {[%clk 0:01:30]} 30. Nxg6+ {[%clk 0:00:47]}  hxg6 {[%clk 0:01:28]} 31. dxc5 {[%clk 0:00:47]}  Bxf3 {[%clk 0:01:28]} 32. c6 {[%clk 0:00:47]}  Nd5 {[%clk 0:01:18]} 33. c7 {[%clk 0:00:46]}  Nb6 {[%clk 0:01:19]} 34. c8=Q+ {[%clk 0:00:45]}  Nxc8 {[%clk 0:01:19]} 35. Rxc8+ {[%clk 0:00:45]}  Ke7 {[%clk 0:01:20]} 36. Rc7+ {[%clk 0:00:45]}  Kf6 {[%clk 0:01:20]} 37. Rxa7 {[%clk 0:00:45]}  e5 {[%clk 0:01:21]} 38. a4 {[%clk 0:00:42]}  Ke6 {[%clk 0:01:20]} 39. a5 {[%clk 0:00:42]}  e4 {[%clk 0:01:16]} 40. Rb7 {[%clk 0:00:35]}  g5 {[%clk 0:00:58]} 41. hxg5 {[%clk 0:00:34]}  Kf5 {[%clk 0:00:54]} 42. Rb5+ {[%clk 0:00:33]}  Kg4 {[%clk 0:00:54]} 43. a6 {[%clk 0:00:32]}  Be2 {[%clk 0:00:54]} 44. a7 {[%clk 0:00:30]}  Bxb5 {[%clk 0:00:54]} 45. a8=Q {[%clk 0:00:29]}  Bd3 {[%clk 0:00:55]} 46. Qc8+ {[%clk 0:00:27]}  Kxg5 {[%clk 0:00:54]} 47. Qc3 {[%clk 0:00:24]}  g6 {[%clk 0:00:54]} 48. Qe5+ {[%clk 0:00:24]}  f5 {[%clk 0:00:53]} 49. b4 {[%clk 0:00:21]}  Kh6 {[%clk 0:00:52]} 50. Qh8+ {[%clk 0:00:19]}  Kg5 {[%clk 0:00:51]} 51. Qh4# {[%clk 0:00:19]} 1-0


[Site "https://www.chess.com"]

[Event "Titled Tuesday Blitz October 31 Late 2023"]
[White "Blomqvist, Erik"]
[Black "Blanco Ronquillo, Humberto L."]
[WhiteFideId "1709437"]
[BlackFideId "3504239"]
[WhiteElo "2564"]
[BlackElo "2722"]
[Result "0-1"]
[Round "8"]
[TimeControl "180+1"]
[Date "2023.10.31"]
[WhiteClock "0:00:00"]
[BlackClock "0:00:57"]
[Board "42"]

1. e4 {[%clk 0:03:00]}  e5 {[%clk 0:02:56]} 2. Nf3 {[%clk 0:03:00]}  Nc6 {[%clk 0:02:56]} 3. Bb5 {[%clk 0:03:00]}  f5 {[%clk 0:02:57]} 4. d3 {[%clk 0:03:00]}  fxe4 {[%clk 0:02:57]} 5. dxe4 {[%clk 0:03:01]}  Nf6 {[%clk 0:02:57]} 6. O-O {[%clk 0:03:01]}  Bc5 {[%clk 0:02:58]} 7. Bxc6 {[%clk 0:03:00]}  bxc6 {[%clk 0:02:56]} 8. Nxe5 {[%clk 0:03:00]}  O-O {[%clk 0:02:57]} 9. Nc3 {[%clk 0:03:00]}  d6 {[%clk 0:02:57]} 10. Na4 {[%clk 0:03:00]}  Nxe4 {[%clk 0:02:55]} 11. Nxc5 {[%clk 0:03:00]}  Nxc5 {[%clk 0:02:56]} 12. Nxc6 {[%clk 0:03:00]}  Qe8 {[%clk 0:02:56]} 13. Nd4 {[%clk 0:03:01]}  Bb7 {[%clk 0:02:53]} 14. f3 {[%clk 0:02:59]}  Qg6 {[%clk 0:02:52]} 15. Be3 {[%clk 0:02:32]}  Rae8 {[%clk 0:02:48]} 16. Qd2 {[%clk 0:02:32]}  Nd7 {[%clk 0:02:25]} 17. Kh1 {[%clk 0:02:21]}  Ne5 {[%clk 0:02:24]} 18. Bf4 {[%clk 0:01:27]}  Nc4 {[%clk 0:02:21]} 19. Qb4 {[%clk 0:01:27]}  Nb6 {[%clk 0:02:20]} 20. Bg3 {[%clk 0:01:25]}  c5 {[%clk 0:02:16]} 21. Qa3 {[%clk 0:01:01]}  a6 {[%clk 0:02:13]} 22. Qb3+ {[%clk 0:00:58]}  Bd5 {[%clk 0:01:43]} 23. Qxb6 {[%clk 0:00:58]}  cxd4 {[%clk 0:01:43]} 24. Qxd4 {[%clk 0:00:57]}  Ba8 {[%clk 0:01:40]} 25. Rf2 {[%clk 0:00:49]}  Re6 {[%clk 0:01:36]} 26. Rd1 {[%clk 0:00:23]}  Rfe8 {[%clk 0:01:36]} 27. Kg1 {[%clk 0:00:22]}  h6 {[%clk 0:01:27]} 28. Rfd2 {[%clk 0:00:18]}  d5 {[%clk 0:01:15]} 29. a4 {[%clk 0:00:15]}  Kh8 {[%clk 0:01:14]} 30. b4 {[%clk 0:00:15]}  Bc6 {[%clk 0:01:10]} 31. Ra1 {[%clk 0:00:09]}  Qf7 {[%clk 0:01:07]} 32. Qd3 {[%clk 0:00:08]}  Qb7 {[%clk 0:01:06]} 33. c3 {[%clk 0:00:05]}  Re3 {[%clk 0:01:06]} 34. Qd4 {[%clk 0:00:05]}  R3e6 {[%clk 0:01:05]} 35. Bf2 {[%clk 0:00:05]}  Rg6 {[%clk 0:01:02]} 36. h3 {[%clk 0:00:05]}  Kh7 {[%clk 0:01:02]} 37. Kh2 {[%clk 0:00:05]}  Rf8 {[%clk 0:01:01]} 38. Qh4 {[%clk 0:00:04]}  Rf5 {[%clk 0:00:59]} 39. Bd4 {[%clk 0:00:04]}  Rfg5 {[%clk 0:00:59]} 40. b5 {[%clk 0:00:01]}  axb5 {[%clk 0:00:57]} 41. axb5 {[%clk 0:00:02]}  Qxb5 {[%clk 0:00:57]} 42. Ra7 {[%clk 0:00:00]}  Qf1 {[%clk 0:00:57]} 0-1


[Site "https://www.chess.com"]